bitfinex-derivatives/quotes_SOLF0:USTF0_20251224
["timestamp","ask_amount","ask_price","bid_price","bid_amount"]
[1766615799554,19.52,123.2,123.16,0.05857545]
[1766615806550,26.8303,123.2,123.16,0.05857545]
[1766615806751,19.52,123.19,123.13,16.24908027]
[1766615807350,19.52,123.19,123.13,32.59908027]
[1766615807657,0.06083211,123.17,123.15,0.05427566]
[1766615810358,19.58083211,123.17,123.13,7.55690469]
[1766615810556,19.58083211,123.17,123.12,7.55690469]
[1766615811150,19.58083211,123.17,123.12,16.25018027]
[1766615811359,19.58083211,123.17,123.13,0.05130026]
[1766615812764,19.52,123.2,123.15,20.02]
[1766615813661,0.05581243,123.19,123.16,0.0514489]
[1766615815460,19.57581243,123.19,123.16,0.0514489]
[1766615828878,20.61,123.24,123.16,0.0514489]
[1766615829169,20.61,123.24,123.16,1.37827558]
[1766615829353,20.61,123.24,123.15,1.37827558]
[1766615829555,20.61,123.24,123.15,21.46827558]
[1766615829962,20.66917771,123.21,123.18,0.0564118]
[1766615830168,20.66917771,123.21,123.15,20.09]
[1766615830359,20.66917771,123.21,123.15,21.46827558]
[1766615831157,20.66917771,123.21,123.17,0.05979121]
[1766615831363,20.6663139,123.2,123.17,0.05979121]
[1766615836266,0.0563139,123.2,123.17,0.05979121]
[1766615836467,20.61,123.22,123.17,7.37179121]
[1766615837069,20.61,123.22,123.18,7.3113]
[1766615837576,0.06175238,123.21,123.18,7.3113]
[1766615840683,20.61,123.22,123.19,7.3106]
[1766615841177,95.94,123.27,123.19,7.3106]
[1766615841580,103.2463,123.27,123.19,7.3106]
[1766615841777,0.05695826,123.24,123.19,7.3106]
[1766615842874,0.05695826,123.24,123.2,0.05701323]
[1766615843174,20.66695826,123.24,123.2,0.05701323]
[1766615843773,20.66695826,123.24,123.2,7.36711323]
[1766615844581,20.61,123.26,123.21,20.09]
[1766615845779,0.06226911,123.25,123.22,7.36529838]
[1766615852476,0.06226911,123.25,123.22,30.29529838]
[1766615854588,0.06226911,123.25,123.23,7.3084]
[1766615855982,22.42,123.28,123.23,7.3084]
[1766615856384,22.42,123.28,123.22,22.98629838]
[1766615856590,22.42,123.28,123.22,7.36529838]
[1766615856992,22.47971403,123.26,123.22,7.36529838]
[1766615857892,22.47971403,123.26,123.22,0.05629838]
[1766615860693,22.47971403,123.26,123.19,7.3104]
[1766615860888,22.42,123.26,123.19,7.3104]
[1766615861897,22.91302884,123.24,123.21,0.05171564]
[1766615862098,22.91302884,123.24,123.21,0.055115]
[1766615871903,22.91302884,123.24,123.17,28.7217]
[1766615872700,22.91302884,123.24,123.18,7.3114]
[1766615872905,22.91302884,123.24,123.2,0.05476005]
[1766615873207,22.91302884,123.24,123.2,0.00476005]
[1766615877207,22.86,123.22,123.16,95.88]
[1766615877911,22.86,123.22,123.16,103.1926]
[1766615878306,0.06041123,123.2,123.18,0.06184813]
[1766615880819,22.92041123,123.2,123.18,0.06184813]
[1766615881205,0.06041123,123.2,123.18,0.06184813]
[1766615881517,22.86,123.22,123.18,0.06184813]
[1766615882310,0.05481398,123.21,123.18,0.06184813]
[1766615882712,0.05481398,123.21,123.18,7.37314813]
[1766615882906,0.05481398,123.21,123.18,0.06184813]
[1766615889033,0.05481398,123.21,123.18,22.81184813]
[1766615889330,0.00481398,123.21,123.18,22.81184813]
[1766615890332,0.00481398,123.21,123.2,30.0603]
[1766615893938,0.00481398,123.21,123.2,125.9603]
[1766615895026,22.96,123.3,123.22,30.0587]
[1766615896033,0.05766129,123.27,123.25,0.0574618]
[1766615898439,23.01766129,123.27,123.22,22.75]
[1766615898639,23.01766129,123.27,123.21,7.3092]
[1766615899247,23.01766129,123.27,123.21,30.0592]
[1766615899447,23.01766129,123.27,123.23,0.05283008]
[1766615904359,22.96,123.26,123.23,0.00283008]
[1766615910056,23.01766129,123.27,123.23,0.00283008]
[1766615914348,0.05766129,123.27,123.23,23.42283008]
[1766615914559,23.11,123.31,123.23,23.42283008]
[1766615914760,23.11,123.31,123.23,23.42]
[1766615914950,23.11,123.33,123.25,30.7271]
[1766615915258,24.48740038,123.33,123.26,23.42]
[1766615915559,0.05789896,123.31,123.28,0.05506961]
[1766615916153,23.16789896,123.31,123.28,0.05506961]
[1766615918150,0.05789896,123.31,123.28,0.05506961]
[1766615918354,97.29162154,123.37,123.28,0.05506961]
[1766615918355,22.84,123.35,123.28,23.29506961]
[1766615918556,22.84,123.35,123.28,23.24]
[1766615918752,22.84,123.35,123.29,23.24]
[1766615919362,0.05807552,123.33,123.31,0.05411829]
[1766615920151,22.89807552,123.33,123.27,23.24]
[1766615921166,22.89807552,123.33,123.29,0.05456012]
[1766615925367,22.89807552,123.33,123.29,0.00456012]
[1766615928062,0.05807552,123.33,123.29,23.24456012]
[1766615931673,22.89807552,123.33,123.29,0.00456012]
[1766615941084,0.05807552,123.33,123.29,0.00456012]
[1766615944986,0.05807552,123.33,123.29,24.09456012]
[1766615948683,23.82,123.32,123.22,24.09]
[1766615948874,22.98,123.26,123.17,7.50438551]
[1766615949186,22.98,123.26,123.16,24.09]
[1766615949579,22.98,123.26,123.2,0.05732702]
[1766615949786,0.05499953,123.22,123.2,0.05732702]
[1766615952383,23.21499953,123.22,123.16,24.09]
[1766615952884,0.05499953,123.22,123.16,24.09]
[1766615953389,0.05499953,123.22,123.18,0.0562265]
[1766615953691,0.06215702,123.21,123.18,24.1462265]
[1766615954582,0.00215702,123.21,123.18,24.1462265]
[1766615962789,0.00215702,123.21,123.18,0.0562265]
[1766615972810,0.00215702,123.21,123.18,23.9062265]
[1766615985922,0.00215702,123.21,123.18,0.0562265]
[1766615986314,24.18215702,123.21,123.16,23.43]
[1766615987120,31.49215702,123.21,123.16,23.43]
[1766615987324,31.49215702,123.21,123.17,0.06151882]
[1766615989817,24.24,123.2,123.17,0.00151882]
[1766615991415,7.3114,123.18,123.17,0.00151882]
[1766615992515,7.3114,123.18,123.13,23.43]
[1766615993523,0.05245327,123.17,123.14,0.05508533]
[1766616000236,7.36455327,123.17,123.14,0.05508533]
[1766616000440,0.05245327,123.17,123.14,0.05508533]
[1766616001242,0.00245327,123.17,123.14,23.48508533]
[1766616004545,0.00245327,123.17,123.14,30.79888533]
[1766616004843,0.00245327,123.17,123.15,24.11]
[1766616005247,0.00245327,123.17,123.15,31.4232]
[1766616005550,24.55,123.25,123.17,24.11]
[1766616005745,24.55,123.25,123.19,24.11]
[1766616006545,0.05328305,123.23,123.21,0.05769788]
[1766616006735,7.306,123.28,123.21,24.11]
[1766616007638,0.05264718,123.26,123.23,0.05542186]
[1766616008239,0.05264718,123.26,123.23,24.16542186]
[1766616008452,0.00264718,123.26,123.23,24.16542186]
[1766616009753,0.00264718,123.26,123.23,31.47382186]
[1766616009942,0.00264718,123.26,123.24,24.11]
[1766616012154,0.00264718,123.26,123.25,24.11]
[1766616014440,7.3024,123.34,123.25,8.9269]
[1766616014655,7.3024,123.34,123.21,98.09338724]
[1766616014656,24.64,123.35,123.27,24.11]
[1766616014854,24.64,123.35,123.28,24.11]
[1766616015253,24.64,123.34,123.26,24.11]
[1766616015855,0.06003359,123.31,123.29,0.00152772]
[1766616016049,24.64,123.32,123.29,0.00152772]
[1766616016646,31.9433,123.32,123.29,0.00152772]
[1766616016853,32.00383483,123.32,123.29,0.00152772]
[1766616017055,24.64,123.31,123.29,0.00152772]
[1766616017257,31.9441,123.31,123.25,95.9]
[1766616017463,24.64,123.3,123.24,24.11]
[1766616018050,24.64,123.29,123.22,24.11]
[1766616018255,0.06042748,123.27,123.24,0.06085531]
[1766616021263,0.00042748,123.27,123.24,24.17085531]
[1766616024375,0.00042748,123.27,123.24,31.47855531]
[1766616024665,0.00042748,123.27,123.25,24.11]
[1766616025463,0.00042748,123.27,123.26,119.99]
[1766616026765,24.64,123.35,123.27,24.11]
[1766616027866,0.05705133,123.32,123.3,0.05682258]
[1766616029171,0.05705133,123.32,123.26,24.11]
[1766616029366,24.69705133,123.32,123.26,24.11]
[1766616029763,26.07364491,123.32,123.26,24.11]
[1766616030174,26.07364491,123.32,123.28,0.05587359]
[1766616032674,33.37684491,123.32,123.28,0.05587359]
[1766616033676,32.72684491,123.32,123.28,0.05587359]
[1766616033871,31.2945,123.3,123.22,23.75]
[1766616034075,23.99,123.29,123.22,23.75]
[1766616035077,0.05606577,123.27,123.24,0.05726331]
[1766616039977,24.74,123.26,123.2,24.46]
[1766616040177,26.11659358,123.26,123.2,24.46]
[1766616041070,0.06265055,123.24,123.22,0.05578516]
[1766616044686,0.06265055,123.24,123.18,127.6314]
[1766616045088,0.06265055,123.24,123.19,24.46]
[1766616045784,0.06265055,123.24,123.2,0.06052203]
[1766616046288,24.61,123.23,123.2,0.00052203]
[1766616055894,24.60265055,123.24,123.2,0.00052203]
[1766616070116,24.44,123.28,123.21,32.8591]
[1766616070410,24.44,123.28,123.22,25.55]
[1766616071111,0.0550381,123.26,123.24,0.06029474]
[1766616077908,7.3036,123.32,123.24,25.61029474]
[1766616078113,24.44,123.31,123.24,25.55]
[1766616079012,0.05189201,123.29,123.26,0.05601652]
[1766616079212,0.05189201,123.29,123.26,25.60601652]
[1766616079905,24.44,123.31,123.26,32.91261652]
[1766616080506,24.44,123.31,123.26,0.05601652]
[1766616081009,0.05527722,123.3,123.26,0.05601652]
[1766616084916,24.49527722,123.3,123.26,0.05601652]
[1766616091722,31.79967722,123.3,123.26,0.05601652]
[1766616092022,24.41,123.29,123.26,0.05601652]
[1766616095326,24.41,123.29,123.24,25.55]
[1766616095626,24.41,123.28,123.22,25.6]
[1766616096326,0.05315712,123.26,123.24,0.05422116]
[1766616097122,24.46315712,123.26,123.2,121.46]
[1766616097330,24.46315712,123.26,123.2,95.86]
[1766616098124,24.46315712,123.26,123.22,0.05420818]
[1766616098719,24.09,123.25,123.22,0.05420818]
[1766616098920,24.09,123.25,123.22,0.00420818]
[1766616101723,24.09,123.24,123.18,25.6]
[1766616102617,0.05980747,123.22,123.2,0.05726378]
[1766616103229,24.14980747,123.22,123.17,7.312]
[1766616103631,24.14980747,123.22,123.17,30.862]
[1766616104232,24.14980747,123.22,123.18,0.05355376]
[1766616104731,0.05980747,123.22,123.18,0.05355376]
[1766616104932,0.05980747,123.22,123.18,23.60355376]
[1766616110523,24.14980747,123.22,123.18,0.05355376]
[1766616111634,31.45890747,123.22,123.18,0.05355376]
[1766616113238,24.14980747,123.22,123.18,0.05355376]
[1766616114333,0.05980747,123.22,123.18,23.60355376]
[1766616114537,24.09,123.24,123.18,23.60355376]
[1766616114938,24.09,123.24,123.19,7.3106]
[1766616115140,24.09,123.27,123.2,23.55]
[1766616115328,24.09,123.27,123.21,23.55]
[1766616115638,0.06186106,123.25,123.23,0.0556783]
[1766616115941,0.00262875,123.25,123.23,0.0610471]
[1766616116329,0.00262875,123.25,123.23,30.9194471]
[1766616139254,0.00262875,123.25,123.24,25.72]
[1766616139557,0.00262875,123.25,123.24,33.0279]
[1766616143356,0.00262875,123.25,123.23,0.0610471]
[1766616143667,0.00262875,123.25,123.23,25.7810471]
[1766616148262,0.00262875,123.25,123.23,33.0894471]
[1766616148665,0.00262875,123.25,123.23,0.0610471]
[1766616148874,0.00262875,123.25,123.23,0.0010471]
[1766616149769,23.50262875,123.25,123.19,121.58]
[1766616150274,23.50262875,123.25,123.19,128.8908]
[1766616150474,23.50262875,123.25,123.19,121.58]
[1766616150670,23.50262875,123.25,123.21,0.05640103]
[1766616151363,24.8797378,123.25,123.19,121.58]
[1766616152369,24.8797378,123.25,123.21,0.05344107]
[1766616154678,24.8797378,123.25,123.21,0.00344107]
[1766616155171,24.8797378,123.25,123.17,25.56]
[1766616155376,24.28,123.24,123.16,95.88]
[1766616155577,24.28,123.22,123.16,95.88]
[1766616156272,0.0529104,123.2,123.18,0.05167314]
[1766616156871,25.9529104,123.2,123.12,25.56]
[1766616157174,24.28,123.2,123.12,25.56]
[1766616157872,1.37710905,123.21,123.12,25.56]
[1766616157873,0.05164622,123.17,123.15,0.06092714]
[1766616158079,0.00164622,123.17,123.15,25.29092714]
[1766616158967,23.74,123.23,123.15,25.29092714]
[1766616159172,23.74,123.23,123.15,25.23]
[1766616160079,0.05649894,123.2,123.18,0.05678442]
[1766616160781,23.74,123.23,123.18,0.05678442]
[1766616160979,23.74,123.25,123.18,25.28678442]
[1766616161279,23.74,123.25,123.2,25.23]
[1766616161976,0.05787218,123.24,123.21,0.0608635]
[1766616162765,23.74,123.27,123.21,25.2908635]
[1766616163780,0.0606748,123.25,123.21,25.2908635]
[1766616168085,0.0606748,123.25,123.21,32.6003635]
[1766616168283,0.0606748,123.25,123.22,25.23]
[1766616172086,0.0006748,123.25,123.22,25.23]
[1766616173999,0.0006748,123.25,123.22,32.539]
[1766616176690,0.0006748,123.25,123.24,25.23]
[1766616181192,0.0006748,123.25,123.22,32.539]
[1766616181486,0.0006748,123.25,123.23,24.12]
[1766616198594,0.0006748,123.25,123.21,31.4904635]
[1766616204101,0.0006748,123.25,123.21,39.01432718]
[1766616204805,0.0006748,123.25,123.21,31.4904635]
[1766616206301,0.0006748,123.25,123.21,39.01432718]
[1766616208605,0.0006748,123.25,123.23,24.12]
[1766616209709,0.0006748,123.25,123.24,7.3079]
[1766616211208,0.0006748,123.25,123.24,31.4279]
[1766616212900,0.0006748,123.25,123.24,38.95176368]
[1766616215403,0.0006748,123.25,123.24,30.7879]
[1766616215705,0.0006748,123.25,123.24,38.31176368]
[1766616215911,0.0006748,123.25,123.24,30.7879]
[1766616217208,0.0006748,123.25,123.24,31.00386368]
[1766616218110,0.0006748,123.25,123.24,23.48]
[1766616218809,0.0006748,123.25,123.23,7.52386368]
[1766616219011,0.0006748,123.25,123.21,24.6908635]
[1766616222311,0.0006748,123.25,123.21,32.0004635]
[1766616222718,0.0006748,123.25,123.22,24.63]
[1766616223716,0.0006748,123.25,123.23,24.63]
[1766616227619,0.0006748,123.25,123.22,7.3091]
[1766616229410,0.0006748,123.25,123.21,24.6908635]
[1766616230816,24.4206748,123.25,123.21,0.0608635]
[1766616234125,31.7279748,123.25,123.21,0.0608635]
[1766616237026,24.36,123.23,123.18,95.88]
[1766616237225,24.36,123.23,123.18,120.51]
[1766616237727,24.36,123.26,123.19,24.63]
[1766616237931,0.05306246,123.24,123.21,0.0547648]
[1766616241430,0.05306246,123.24,123.21,23.7247648]
[1766616242032,23.5,123.28,123.22,23.67]
[1766616242232,23.5,123.28,123.23,23.67]
[1766616243029,0.05827284,123.27,123.24,0.05876858]
[1766616272364,0.05827284,123.27,123.24,32.76666858]
[1766616272565,24.44,123.3,123.25,25.4]
[1766616273553,0.05448511,123.29,123.26,0.05435519]
[1766616279373,0.05448511,123.29,123.26,23.62435519]
[1766616280075,0.000603,123.29,123.26,23.62435519]
[1766616280673,0.000603,123.29,123.26,30.93105519]
[1766616281376,0.000603,123.29,123.27,23.57]
[1766616296077,0.000603,123.29,123.26,0.05435519]
[1766616296578,23.660603,123.29,123.26,0.05435519]
[1766616302079,30.965603,123.29,123.26,0.05435519]
[1766616302991,30.965603,123.29,123.24,23.57]
[1766616303289,24.48,123.28,123.24,23.57]
[1766616303988,24.48,123.28,123.25,0.05155611]
[1766616315204,0.000603,123.29,123.25,0.05155611]
[1766616318709,24.490603,123.29,123.25,0.05155611]
[1766616326113,24.490603,123.29,123.25,0.00155611]
[1766616326304,24.44,123.28,123.25,0.00155611]
[1766616338116,0.000603,123.29,123.25,0.00155611]
[1766616339212,0.000603,123.29,123.25,23.28155611]
[1766616341624,24.460603,123.29,123.25,23.28155611]
[1766616349232,24.460603,123.29,123.25,0.00155611]
[1766616361035,24.460603,123.29,123.25,7.30875611]
[1766616369342,24.460603,123.29,123.25,0.00155611]
[1766616379746,0.000603,123.29,123.25,32.40865611]
[1766616385752,0.000603,123.29,123.25,25.10155611]
[1766616387253,0.000603,123.29,123.25,32.40865611]
[1766616387460,0.000603,123.29,123.26,25.1]
[1766616390860,0.000603,123.29,123.27,25.1]
[1766616391958,23.84,123.34,123.28,24.9]
[1766616393065,0.05521245,123.32,123.3,0.0532732]
[1766616400761,23.14521245,123.32,123.3,0.0032732]
[1766616401764,0.05521245,123.32,123.3,0.0032732]
[1766616404266,0.05521245,123.32,123.28,22.99]
[1766616405261,23.14521245,123.32,123.26,126.1366]
[1766616405563,23.14521245,123.32,123.29,0.05828373]
[1766616408462,23.14521245,123.32,123.27,22.99]
[1766616409470,23.14521245,123.32,123.28,0.05918543]
[1766616412865,23.01,123.31,123.25,30.2973]
[1766616413871,0.05602902,123.29,123.27,0.06183847]
[1766616420173,0.05602902,123.29,123.23,22.99]
[1766616420379,1.37689297,123.32,123.23,22.99]
[1766616421072,0.06244379,123.29,123.26,0.05416785]
[1766616421270,0.06244379,123.29,123.23,22.99]
[1766616421577,7.36764379,123.29,123.23,22.99]
[1766616422079,17.37764379,123.29,123.23,22.99]
[1766616422273,10.07244379,123.29,123.25,0.04091526]
[1766616423574,0.06244379,123.29,123.25,24.21091526]
[1766616424171,0.00244379,123.29,123.26,24.17]
[1766616425581,0.00244379,123.29,123.26,31.4765]
[1766616426376,0.00244379,123.29,123.27,24.17]
[1766616428282,0.00244379,123.29,123.28,24.17]
[1766616437795,0.00244379,123.29,123.28,31.4755]
[1766616442590,0.00244379,123.29,123.28,127.3155]
[1766616451393,0.00244379,123.29,123.28,120.01]
[1766616451594,0.00244379,123.29,123.28,95.84]
[1766616451995,0.00244379,123.29,123.25,7.34761526]
[1766616452195,10.10244379,123.29,123.25,0.04091526]
[1766616452594,17.40744379,123.29,123.25,0.04091526]
[1766616452794,10.1,123.28,123.25,0.04091526]
[1766616455008,0.00244379,123.29,123.25,0.04091526]
[1766616455906,0.00244379,123.29,123.25,30.88811526]
[1766616458809,0.00244379,123.29,123.26,7.3067]
[1766616462707,0.00244379,123.29,123.26,30.8667]
[1766616465322,0.00244379,123.29,123.26,23.56]
[1766616467722,0.00244379,123.29,123.26,30.8666]
[1766616467924,0.00244379,123.29,123.27,23.56]
[1766616469522,0.00244379,123.29,123.28,30.8655]
[1766616472724,0.00244379,123.29,123.28,126.7055]
[1766616473725,0.00244379,123.29,123.28,103.1455]
[1766616473923,0.00244379,123.29,123.28,95.84]
[1766616476517,0.00244379,123.29,123.28,119.4]
[1766616478523,0.00244379,123.29,123.28,95.84]
[1766616478925,0.00244379,123.29,123.28,119.4]
[1766616479126,0.00244379,123.29,123.28,95.84]
[1766616479623,0.00244379,123.29,123.28,119.4]
[1766616483623,0.00244379,123.29,123.28,95.84]
[1766616484131,0.00244379,123.29,123.28,119.43]
[1766616485228,0.00244379,123.29,123.28,95.84]
[1766616486934,0.00244379,123.29,123.28,103.1455]
[1766616490638,0.00244379,123.29,123.28,95.84]
[1766616491539,0.00244379,123.29,123.28,119.43]
[1766616491839,0.00244379,123.29,123.28,95.84]
[1766616492436,0.00244379,123.29,123.28,119.43]
[1766616495245,0.00244379,123.29,123.28,95.84]
[1766616506357,0.00244379,123.29,123.28,119.43]
[1766616510955,0.00244379,123.29,123.28,95.84]
[1766616512150,0.00244379,123.29,123.28,118.87]
[1766616515262,0.00244379,123.29,123.25,7.59093229]
[1766616515446,0.00244379,123.29,123.26,95.84]
[1766616516951,0.00244379,123.29,123.25,0.04091526]
[1766616517156,7.3056,123.28,123.25,0.04091526]
[1766616517358,24.54244379,123.29,123.25,0.04091526]
[1766616518658,7.3062,123.27,123.25,0.04091526]
[1766616520765,31.84764379,123.29,123.25,0.04091526]
[1766616521663,0.00244379,123.29,123.25,24.86091526]
[1766616540182,24.81244379,123.29,123.25,0.04091526]
[1766616540388,32.11754379,123.29,123.25,0.04091526]
[1766616542187,24.79,123.28,123.25,0.04091526]
[1766616549096,32.0955,123.28,123.25,0.04091526]
[1766616552198,24.79,123.26,123.21,25.65]
[1766616552698,32.0969,123.26,123.21,25.65]
[1766616552885,24.79,123.25,123.19,121.51]
[1766616553089,0.05186349,123.23,123.21,0.05855693]
[1766616563904,24.84186349,123.23,123.21,0.05855693]
[1766616564100,24.84186349,123.23,123.19,95.86]
[1766616567495,24.79,123.22,123.16,123.40151481]
[1766616567693,0.06260005,123.2,123.16,123.40151481]
[1766616569404,0.06260005,123.2,123.17,25.65]
[1766616578918,0.06260005,123.2,123.16,129.55411481]
[1766616579111,0.06260005,123.2,123.16,127.7026]
[1766616579311,0.06260005,123.2,123.16,120.39]
[1766616581417,0.06260005,123.2,123.16,24.49]
[1766616586515,7.37310005,123.2,123.16,24.49]
[1766616586722,31.81310005,123.2,123.15,95.92]
[1766616586924,24.44,123.19,123.15,95.92]
[1766616587921,31.7509,123.19,123.15,95.92]
[1766616588808,7.3114,123.18,123.15,95.92]
[1766616589312,24.44,123.19,123.15,95.92]
[1766616589722,7.37340005,123.2,123.16,24.49]
[1766616590822,31.81340005,123.2,123.16,24.49]
[1766616594531,31.81340005,123.2,123.15,95.92]
[1766616595640,31.81340005,123.2,123.15,120.41]
[1766616599541,31.81340005,123.2,123.15,24.49]
[1766616609042,7.3109,123.19,123.15,24.49]
[1766616609241,26.0,123.19,123.15,11.9783]
[1766616609443,26.0,123.19,123.13,95.94]
[1766616609738,0.05345651,123.17,123.13,95.94]
[1766616611239,0.05345651,123.17,123.13,120.71]
[1766616620156,0.05345651,123.17,123.13,24.77]
[1766616624659,7.36575651,123.17,123.13,24.77]
[1766616628265,7.3126,123.16,123.13,24.77]
[1766616634371,0.05345651,123.17,123.13,9.8211053]
[1766616634372,7.3133,123.15,123.13,9.8211053]
[1766616634677,7.3133,123.15,123.13,5.3e-06]
[1766616637871,7.3133,123.15,123.09,25.03]
[1766616637872,33.8733,123.15,123.09,25.03]
[1766616638069,0.05508556,123.13,123.09,25.03]
[1766616638467,0.05508556,123.13,123.09,32.3467]
[1766616638766,26.56,123.15,123.1,25.08652864]
[1766616638966,7.3127,123.16,123.1,25.08652864]
[1766616639661,0.06229648,123.14,123.1,25.08652864]
[1766616644380,7.37619648,123.14,123.1,25.08652864]
[1766616652285,0.06229648,123.14,123.1,25.08652864]
[1766616660695,27.93951235,123.19,123.1,25.08652864]
[1766616660901,27.93951235,123.19,123.1,25.03]
[1766616661705,0.05818371,123.16,123.13,26.27648304]
[1766616665303,26.56,123.19,123.13,26.27648304]
[1766616665496,27.55,123.21,123.14,26.22]
[1766616666194,0.05496213,123.19,123.14,26.22]
[1766616666403,0.05496213,123.19,123.13,95.98]
[1766616666404,0.05496213,123.19,123.16,26.27726944]
[1766616667801,0.00496213,123.19,123.16,26.27726944]
[1766616686819,0.00496213,123.19,123.16,33.58986944]
[1766616687021,0.00496213,123.19,123.17,26.22]
[1766616688822,27.55,123.23,123.18,26.22]
[1766616689021,27.55,123.25,123.18,26.22]
[1766616689921,0.05545731,123.23,123.2,0.05176914]
[1766616690520,0.05545731,123.23,123.2,26.27176914]
[1766616690918,27.55,123.25,123.21,26.22]
[1766616691924,0.05593073,123.24,123.21,26.22]
[1766616692120,0.05593073,123.24,123.21,26.27716555]
[1766616699631,34.9261,123.27,123.21,26.27716555]
[1766616700733,0.05421306,123.25,123.21,26.27716555]
[1766616719558,0.05421306,123.25,123.21,33.58656555]
[1766616719750,0.00421306,123.25,123.22,26.97]
[1766616720247,0.00421306,123.25,123.22,34.279]
[1766616720453,0.00421306,123.25,123.23,26.97]
[1766616721556,0.00421306,123.25,123.23,34.2784]
[1766616721750,0.00421306,123.25,123.24,28.16]
[1766616725860,37.34977352,123.29,123.24,28.16]
[1766616726862,0.05824886,123.28,123.25,0.0566824]
[1766616731668,35.43404886,123.28,123.22,28.16]
[1766616731860,35.43404886,123.28,123.23,28.16]
[1766616732965,35.43404886,123.28,123.24,0.0535633]
[1766616738473,35.3762,123.27,123.24,0.0535633]
[1766616740469,28.07,123.26,123.21,28.16]
[1766616741475,0.05328178,123.25,123.22,0.05445351]
[1766616752589,0.05328178,123.25,123.22,28.38445351]
[1766616760791,0.00328178,123.25,123.22,28.38445351]
[1766616768694,0.00328178,123.25,123.22,35.69345351]
[1766616768894,0.00328178,123.25,123.23,29.84]
[1766616769203,0.00328178,123.25,123.24,125.72]
[1766616770094,0.00328178,123.25,123.24,133.0279]
[1766616770301,29.51,123.32,123.25,29.84]
[1766616770893,29.51,123.32,123.25,37.147]
[1766616771287,0.05209933,123.3,123.25,37.147]
[1766616771495,0.05209933,123.3,123.27,29.89545653]
[1766616777112,1.37792316,123.33,123.27,37.20135653]
[1766616777312,1.37792316,123.33,123.28,125.7]
[1766616777809,36.8125,123.34,123.29,29.84]
[1766616778013,29.51,123.34,123.29,29.84]
[1766616778204,0.05410506,123.33,123.3,0.05337811]
[1766616779309,29.56410506,123.33,123.3,0.05337811]
[1766616787220,36.86670506,123.33,123.3,0.05337811]
[1766616787420,38.24462822,123.33,123.27,113.05]
[1766616787623,38.24462822,123.33,123.27,27.47]
[1766616788323,38.24462822,123.33,123.29,0.06059735]
[1766616795437,36.86670506,123.33,123.29,0.06059735]
[1766616804041,36.86670506,123.33,123.29,27.53059735]
[1766616811742,29.56410506,123.33,123.29,27.53059735]
[1766616820756,29.56410506,123.33,123.29,0.06059735]
[1766616822451,36.86670506,123.33,123.29,0.06059735]
[1766616827470,36.86670506,123.33,123.29,0.00059735]
[1766616827672,36.86670506,123.33,123.26,139.7120684]
[1766616828570,36.86670506,123.33,123.28,0.05309464]
[1766616840775,29.56410506,123.33,123.28,0.05309464]
[1766616841877,29.56410506,123.33,123.28,30.37309464]
[1766616842065,29.56410506,123.33,123.28,37.95006309]
[1766616842580,29.56410506,123.33,123.28,37.67859464]
[1766616845179,29.56410506,123.33,123.28,30.37309464]
[1766616846584,36.86670506,123.33,123.28,30.37309464]
[1766616855783,36.86670506,123.33,123.28,0.05309464]
[1766616878616,36.86670506,123.33,123.28,0.00309464]
[1766616881422,29.56410506,123.33,123.28,0.00309464]
[1766616883728,0.05410506,123.33,123.28,37.93845846]
[1766616883915,29.58,123.35,123.28,37.93845846]
[1766616884420,36.8816,123.35,123.28,45.24395846]
[1766616884923,0.0575319,123.33,123.28,45.24395846]
[1766616885323,30.4175319,123.33,123.28,45.24395846]
[1766616885925,0.0575319,123.33,123.29,37.4849]
[1766616888930,0.0575319,123.33,123.3,95.84]
[1766616899638,0.0575319,123.33,123.29,37.4849]
[1766616899827,0.0575319,123.33,123.3,95.82]
[1766616899828,30.4175319,123.33,123.3,95.82]
[1766616900942,0.0575319,123.33,123.3,95.82]
[1766616901840,30.2975319,123.33,123.29,7.3049]
[1766616902040,30.2975319,123.33,123.3,95.82]
[1766616905047,0.0575319,123.33,123.3,95.82]
[1766616911741,0.0575319,123.33,123.3,124.93]